[Event "Titled Tuesday Blitz July 4 Early 2023"]
[White "Gholami Orimi, Mahdi"]
[Black "Amanov, Zhanibek"]
[WhiteFideId "12558486"]
[BlackFideId "13700189"]
[WhiteElo "2854"]
[BlackElo "2422"]
[Result "1-0"]
[Round "4"]
[TimeControl "180+2"]
[Date "2023.07.04"]
[WhiteClock "0:00:51"]
[BlackClock "0:00:00"]
[Board "33"]

1. d4 {[%clk 0:02:54]}  d5 {[%clk 0:02:59]} 2. c4 {[%clk 0:02:55]}  c6 {[%clk 0:03:00]} 3. Nf3 {[%clk 0:02:50]}  Nf6 {[%clk 0:03:00]} 4. e3 {[%clk 0:02:50]}  e6 {[%clk 0:02:56]} 5. b3 {[%clk 0:02:51]}  Ne4 {[%clk 0:02:53]} 6. Nbd2 {[%clk 0:02:50]}  Bb4 {[%clk 0:02:48]} 7. a3 {[%clk 0:02:50]}  Bc3 {[%clk 0:02:47]} 8. Ra2 {[%clk 0:02:50]}  Nd7 {[%clk 0:02:44]} 9. Bd3 {[%clk 0:02:50]}  f5 {[%clk 0:02:44]} 10. O-O {[%clk 0:02:50]}  O-O {[%clk 0:02:39]} 11. Rc2 {[%clk 0:02:49]}  Ba5 {[%clk 0:02:36]} 12. b4 {[%clk 0:02:49]}  Bc7 {[%clk 0:02:36]} 13. b5 {[%clk 0:02:46]}  cxb5 {[%clk 0:02:17]} 14. cxd5 {[%clk 0:02:45]}  exd5 {[%clk 0:02:17]} 15. Bxb5 {[%clk 0:02:44]}  a6 {[%clk 0:02:12]} 16. Bd3 {[%clk 0:02:43]}  Bd6 {[%clk 0:02:08]} 17. Bb2 {[%clk 0:02:30]}  Qe7 {[%clk 0:02:06]} 18. Qa1 {[%clk 0:02:28]}  f4 {[%clk 0:01:53]} 19. exf4 {[%clk 0:02:25]}  Rxf4 {[%clk 0:01:51]} 20. Re1 {[%clk 0:02:25]}  Ndf6 {[%clk 0:01:48]} 21. Nf1 {[%clk 0:02:22]}  Qf7 {[%clk 0:01:33]} 22. Ne5 {[%clk 0:02:21]}  Qh5 {[%clk 0:01:33]} 23. f3 {[%clk 0:02:21]}  Ng5 {[%clk 0:01:25]} 24. Bc1 {[%clk 0:02:14]}  Rh4 {[%clk 0:01:21]} 25. Ng3 {[%clk 0:01:56]}  Qh6 {[%clk 0:01:20]} 26. Rxc8+ {[%clk 0:01:56]}  Rxc8 {[%clk 0:01:19]} 27. Nf5 {[%clk 0:01:56]}  Qh5 {[%clk 0:01:19]} 28. Bxg5 {[%clk 0:01:55]}  Qxg5 {[%clk 0:01:18]} 29. Nxd6 {[%clk 0:01:53]}  Rf8 {[%clk 0:01:06]} 30. Nf5 {[%clk 0:01:37]}  Rf4 {[%clk 0:01:06]} 31. Ne7+ {[%clk 0:01:36]}  Kh8 {[%clk 0:01:05]} 32. Qc1 {[%clk 0:01:31]}  Nh5 {[%clk 0:00:48]} 33. Nxd5 {[%clk 0:01:27]}  Rg4 {[%clk 0:00:11]} 34. fxg4 {[%clk 0:01:24]}  Qh4 {[%clk 0:00:05]} 35. Nf7+ {[%clk 0:01:03]}  Kg8 {[%clk 0:00:04]} 36. Ne7+ {[%clk 0:01:01]}  Kxf7 {[%clk 0:00:03]} 37. Qc4+ {[%clk 0:00:56]}  Kf6 {[%clk 0:00:00]} 38. Qe6+ {[%clk 0:00:51]} 1-0


[Site "https://www.chess.com"]

[Event "Titled Tuesday Blitz July 4 Early 2023"]
[White "Ince, Taylan Ruzgar"]
[Black "Kramnik, Vladimir"]
[WhiteFideId "44513089"]
[BlackFideId "4101588"]
[WhiteElo "2593"]
[BlackElo "2982"]
[Result "1-0"]
[Round "4"]
[TimeControl "180+2"]
[Date "2023.07.04"]
[WhiteClock "0:00:07"]
[BlackClock "0:00:00"]
[Board "37"]

1. Nf3 {[%clk 0:02:59]}  Nf6 {[%clk 0:02:59]} 2. d4 {[%clk 0:02:59]}  d5 {[%clk 0:02:57]} 3. c4 {[%clk 0:02:58]}  e6 {[%clk 0:02:57]} 4. g3 {[%clk 0:02:58]}  Bb4+ {[%clk 0:02:55]} 5. Bd2 {[%clk 0:02:58]}  Bd6 {[%clk 0:02:54]} 6. Bg2 {[%clk 0:02:56]}  O-O {[%clk 0:02:54]} 7. Qc2 {[%clk 0:02:55]}  Nc6 {[%clk 0:02:51]} 8. O-O {[%clk 0:02:53]}  dxc4 {[%clk 0:02:49]} 9. Qxc4 {[%clk 0:02:36]}  e5 {[%clk 0:02:49]} 10. dxe5 {[%clk 0:02:30]}  Nxe5 {[%clk 0:02:47]} 11. Nxe5 {[%clk 0:02:30]}  Bxe5 {[%clk 0:02:48]} 12. Bc3 {[%clk 0:02:30]}  Qe7 {[%clk 0:02:27]} 13. Bxe5 {[%clk 0:01:47]}  Qxe5 {[%clk 0:02:26]} 14. Nc3 {[%clk 0:01:47]}  c6 {[%clk 0:02:23]} 15. Rfd1 {[%clk 0:01:46]}  a5 {[%clk 0:02:16]} 16. Qd4 {[%clk 0:01:43]}  Qe7 {[%clk 0:01:59]} 17. e4 {[%clk 0:01:32]}  Be6 {[%clk 0:01:55]} 18. e5 {[%clk 0:01:28]}  Nd7 {[%clk 0:01:50]} 19. f4 {[%clk 0:01:26]}  Nc5 {[%clk 0:01:27]} 20. b4 {[%clk 0:01:00]}  axb4 {[%clk 0:01:20]} 21. Qxb4 {[%clk 0:01:00]}  Rfe8 {[%clk 0:01:16]} 22. a4 {[%clk 0:00:53]}  Bf5 {[%clk 0:01:01]} 23. Bf1 {[%clk 0:00:39]}  h5 {[%clk 0:00:54]} 24. Rd6 {[%clk 0:00:33]}  Ne6 {[%clk 0:00:47]} 25. Rad1 {[%clk 0:00:32]}  h4 {[%clk 0:00:46]} 26. Ne4 {[%clk 0:00:18]}  Bxe4 {[%clk 0:00:41]} 27. Qxe4 {[%clk 0:00:18]}  hxg3 {[%clk 0:00:34]} 28. hxg3 {[%clk 0:00:18]}  g6 {[%clk 0:00:35]} 29. Qb4 {[%clk 0:00:10]}  c5 {[%clk 0:00:26]} 30. Qb5 {[%clk 0:00:10]}  Nd4 {[%clk 0:00:24]} 31. Qxc5 {[%clk 0:00:07]}  Nf5 {[%clk 0:00:24]} 32. R6d5 {[%clk 0:00:07]}  Qxc5+ {[%clk 0:00:22]} 33. Rxc5 {[%clk 0:00:08]}  Nxg3 {[%clk 0:00:20]} 34. Bb5 {[%clk 0:00:08]}  Re7 {[%clk 0:00:20]} 35. Rc4 {[%clk 0:00:05]}  Kg7 {[%clk 0:00:17]} 36. Kf2 {[%clk 0:00:06]}  Nf5 {[%clk 0:00:15]} 37. Rd7 {[%clk 0:00:07]}  Rxd7 {[%clk 0:00:10]} 38. Bxd7 {[%clk 0:00:08]}  Ne7 {[%clk 0:00:10]} 39. Rc7 {[%clk 0:00:08]}  Nd5 {[%clk 0:00:10]} 40. Rxb7 {[%clk 0:00:07]}  Nxf4 {[%clk 0:00:00]} 41. Bb5 {[%clk 0:00:07]} 1-0


[Site "https://www.chess.com"]

[Event "Titled Tuesday Blitz July 4 Early 2023"]
[White "Sanal, Vahap"]
[Black "Pinheiro, Iung Alicio de O."]
[WhiteFideId "6300545"]
[BlackFideId "2104350"]
[WhiteElo "2906"]
[BlackElo "2585"]
[Result "0-1"]
[Round "4"]
[TimeControl "180+2"]
[Date "2023.07.04"]
[WhiteClock "0:00:01"]
[BlackClock "0:00:40"]
[Board "41"]

1. Nf3 {[%clk 0:02:58]}  d5 {[%clk 0:02:58]} 2. g3 {[%clk 0:02:55]}  c6 {[%clk 0:02:56]} 3. Bg2 {[%clk 0:02:55]}  Nf6 {[%clk 0:02:57]} 4. O-O {[%clk 0:02:55]}  Bf5 {[%clk 0:02:57]} 5. d3 {[%clk 0:02:55]}  h6 {[%clk 0:02:54]} 6. Nbd2 {[%clk 0:02:56]}  e6 {[%clk 0:02:54]} 7. b3 {[%clk 0:02:56]}  Be7 {[%clk 0:02:53]} 8. Bb2 {[%clk 0:02:56]}  O-O {[%clk 0:02:54]} 9. Re1 {[%clk 0:02:57]}  Bh7 {[%clk 0:02:53]} 10. e4 {[%clk 0:02:56]}  Nbd7 {[%clk 0:02:53]} 11. Qe2 {[%clk 0:02:55]}  a5 {[%clk 0:02:53]} 12. a4 {[%clk 0:02:55]}  Qc7 {[%clk 0:02:39]} 13. Rad1 {[%clk 0:02:55]}  b5 {[%clk 0:02:35]} 14. e5 {[%clk 0:02:30]}  Ne8 {[%clk 0:02:33]} 15. Nd4 {[%clk 0:02:28]}  bxa4 {[%clk 0:02:27]} 16. bxa4 {[%clk 0:02:27]}  Nc5 {[%clk 0:02:25]} 17. Ra1 {[%clk 0:02:24]}  Na6 {[%clk 0:02:04]} 18. h4 {[%clk 0:01:50]}  Rb8 {[%clk 0:01:50]} 19. N2b3 {[%clk 0:01:50]}  Nb4 {[%clk 0:01:39]} 20. Bc3 {[%clk 0:01:41]}  Qb6 {[%clk 0:01:34]} 21. Reb1 {[%clk 0:01:33]}  Nc7 {[%clk 0:01:33]} 22. Qd2 {[%clk 0:00:44]}  c5 {[%clk 0:01:29]} 23. Nb5 {[%clk 0:00:44]}  Nxb5 {[%clk 0:01:25]} 24. axb5 {[%clk 0:00:44]}  Ra8 {[%clk 0:01:25]} 25. Nc1 {[%clk 0:00:28]}  Rfc8 {[%clk 0:01:12]} 26. Ne2 {[%clk 0:00:27]}  c4 {[%clk 0:01:05]} 27. Nf4 {[%clk 0:00:21]}  cxd3 {[%clk 0:01:00]} 28. cxd3 {[%clk 0:00:20]}  Qxb5 {[%clk 0:01:00]} 29. Bh3 {[%clk 0:00:17]}  Ra6 {[%clk 0:00:57]} 30. Rc1 {[%clk 0:00:16]}  Rac6 {[%clk 0:00:56]} 31. Bb2 {[%clk 0:00:08]}  Rc2 {[%clk 0:00:52]} 32. Qd1 {[%clk 0:00:04]}  Bxd3 {[%clk 0:00:44]} 33. Nxd3 {[%clk 0:00:03]}  Qxd3 {[%clk 0:00:44]} 34. Qxd3 {[%clk 0:00:02]}  Nxd3 {[%clk 0:00:44]} 35. Rxc2 {[%clk 0:00:02]}  Rxc2 {[%clk 0:00:45]} 36. Bd4 {[%clk 0:00:03]}  Bb4 {[%clk 0:00:43]} 37. Bf1 {[%clk 0:00:03]}  Ne1 {[%clk 0:00:40]} 38. Bb5 {[%clk 0:00:01]}  Nf3+ {[%clk 0:00:40]} 0-1


[Site "https://www.chess.com"]

[Event "Titled Tuesday Blitz July 4 Early 2023"]
[White "Ibarra Jerez, Jose Carlos"]
[Black "Nefedov, Sergey"]
[WhiteFideId "2226332"]
[BlackFideId "24113417"]
[WhiteElo "2905"]
[BlackElo "2585"]
[Result "1-0"]
[Round "4"]
[TimeControl "180+2"]
[Date "2023.07.04"]
[WhiteClock "0:00:32"]
[BlackClock "0:00:15"]
[Board "42"]

1. e4 {[%clk 0:03:00]}  d5 {[%clk 0:02:54]} 2. exd5 {[%clk 0:03:00]}  Qxd5 {[%clk 0:02:55]} 3. Nc3 {[%clk 0:03:00]}  Qd8 {[%clk 0:02:55]} 4. Bc4 {[%clk 0:03:00]}  Nf6 {[%clk 0:02:54]} 5. Nf3 {[%clk 0:03:00]}  g6 {[%clk 0:02:49]} 6. O-O {[%clk 0:02:59]}  Bg7 {[%clk 0:02:49]} 7. d4 {[%clk 0:02:58]}  O-O {[%clk 0:02:49]} 8. h3 {[%clk 0:02:57]}  c6 {[%clk 0:02:47]} 9. Re1 {[%clk 0:02:57]}  Nbd7 {[%clk 0:02:44]} 10. a4 {[%clk 0:02:56]}  a5 {[%clk 0:02:43]} 11. Bg5 {[%clk 0:02:53]}  Nb6 {[%clk 0:02:43]} 12. Bb3 {[%clk 0:02:52]}  Nbd5 {[%clk 0:02:43]} 13. Qd2 {[%clk 0:02:40]}  Be6 {[%clk 0:02:42]} 14. Ne5 {[%clk 0:02:33]}  Nc7 {[%clk 0:02:41]} 15. Bxe6 {[%clk 0:02:28]}  Nxe6 {[%clk 0:02:41]} 16. Rad1 {[%clk 0:02:17]}  Nxg5 {[%clk 0:02:31]} 17. Qxg5 {[%clk 0:02:17]}  e6 {[%clk 0:02:30]} 18. Qg3 {[%clk 0:02:05]}  Qb6 {[%clk 0:02:25]} 19. Nc4 {[%clk 0:02:01]}  Qb4 {[%clk 0:02:18]} 20. b3 {[%clk 0:01:59]}  Rfd8 {[%clk 0:02:10]} 21. Na2 {[%clk 0:01:55]}  Qe7 {[%clk 0:02:05]} 22. Nc1 {[%clk 0:01:51]}  b5 {[%clk 0:01:42]} 23. Ne5 {[%clk 0:01:49]}  Qb7 {[%clk 0:01:34]} 24. Qf3 {[%clk 0:01:47]}  Nd5 {[%clk 0:01:30]} 25. axb5 {[%clk 0:01:44]}  Bxe5 {[%clk 0:00:53]} 26. dxe5 {[%clk 0:01:43]}  Nb4 {[%clk 0:00:45]} 27. c3 {[%clk 0:01:32]}  Nd5 {[%clk 0:00:40]} 28. Na2 {[%clk 0:00:50]}  Rdb8 {[%clk 0:00:29]} 29. c4 {[%clk 0:00:50]}  Ne7 {[%clk 0:00:27]} 30. Nc3 {[%clk 0:00:46]}  cxb5 {[%clk 0:00:24]} 31. Rd8+ {[%clk 0:00:40]}  Kg7 {[%clk 0:00:17]} 32. Qxb7 {[%clk 0:00:32]}  Rxb7 {[%clk 0:00:15]} 33. Rxa8 {[%clk 0:00:32]} 1-0


[Site "https://www.chess.com"]

[Event "Titled Tuesday Blitz July 4 Early 2023"]
[White "Pasti, Aron"]
[Black "Molina, Roberto Junio Brito"]
[WhiteFideId "785857"]
[BlackFideId "2109450"]
[WhiteElo "2581"]
[BlackElo "2859"]
[Result "0-1"]
[Round "4"]
[TimeControl "180+2"]
[Date "2023.07.04"]
[WhiteClock "0:00:00"]
[BlackClock "0:00:09"]
[Board "44"]

1. e4 {[%clk 0:03:00]}  c6 {[%clk 0:03:00]} 2. d4 {[%clk 0:02:59]}  d5 {[%clk 0:03:01]} 3. Nc3 {[%clk 0:03:00]}  dxe4 {[%clk 0:03:01]} 4. Nxe4 {[%clk 0:03:00]}  Nd7 {[%clk 0:03:02]} 5. Nf3 {[%clk 0:02:56]}  Ngf6 {[%clk 0:03:02]} 6. Neg5 {[%clk 0:02:51]}  h6 {[%clk 0:03:01]} 7. Nxf7 {[%clk 0:02:46]}  Kxf7 {[%clk 0:03:00]} 8. Bc4+ {[%clk 0:02:47]}  e6 {[%clk 0:03:00]} 9. O-O {[%clk 0:02:45]}  Bd6 {[%clk 0:02:59]} 10. Re1 {[%clk 0:02:35]}  Re8 {[%clk 0:02:57]} 11. Ne5+ {[%clk 0:02:35]}  Kg8 {[%clk 0:02:43]} 12. Qf3 {[%clk 0:02:12]}  Nf8 {[%clk 0:01:39]} 13. Bxh6 {[%clk 0:02:02]}  gxh6 {[%clk 0:01:35]} 14. Qg3+ {[%clk 0:02:02]}  Ng4 {[%clk 0:01:23]} 15. Qxg4+ {[%clk 0:02:01]}  Qg5 {[%clk 0:01:23]} 16. Qf3 {[%clk 0:01:50]}  Re7 {[%clk 0:01:22]} 17. h4 {[%clk 0:01:45]}  Qg7 {[%clk 0:01:11]} 18. Re4 {[%clk 0:01:44]}  Bxe5 {[%clk 0:01:11]} 19. Rg4 {[%clk 0:01:25]}  Bxd4 {[%clk 0:01:00]} 20. Rd1 {[%clk 0:01:14]}  Rf7 {[%clk 0:00:39]} 21. Rxg7+ {[%clk 0:01:13]}  Bxg7 {[%clk 0:00:40]} 22. Qg4 {[%clk 0:01:03]}  Bd7 {[%clk 0:00:37]} 23. f4 {[%clk 0:00:50]}  Kh8 {[%clk 0:00:33]} 24. g3 {[%clk 0:00:28]}  Re8 {[%clk 0:00:33]} 25. Qh5 {[%clk 0:00:22]}  Ree7 {[%clk 0:00:33]} 26. Bd3 {[%clk 0:00:18]}  e5 {[%clk 0:00:31]} 27. Bc4 {[%clk 0:00:15]}  Rf5 {[%clk 0:00:22]} 28. Qg4 {[%clk 0:00:14]}  Rxf4 {[%clk 0:00:18]} 29. Qe2 {[%clk 0:00:08]}  Rf6 {[%clk 0:00:13]} 30. Rf1 {[%clk 0:00:08]}  Rxf1+ {[%clk 0:00:10]} 31. Qxf1 {[%clk 0:00:09]}  Be6 {[%clk 0:00:10]} 32. Bd3 {[%clk 0:00:06]}  Rf7 {[%clk 0:00:11]} 33. Qe2 {[%clk 0:00:05]}  Bd5 {[%clk 0:00:11]} 34. c4 {[%clk 0:00:05]}  Bf3 {[%clk 0:00:11]} 35. Qe3 {[%clk 0:00:04]}  Ne6 {[%clk 0:00:10]} 36. Bg6 {[%clk 0:00:02]}  Rf6 {[%clk 0:00:11]} 37. h5 {[%clk 0:00:00]}  e4 {[%clk 0:00:09]} 0-1


[Site "https://www.chess.com"]

[Event "Titled Tuesday Blitz July 4 Early 2023"]
[White "Aggelis, Nikolaos"]
[Black "Perez Ponsa, Federico"]
[WhiteFideId "4213220"]
[BlackFideId "117927"]
[WhiteElo "2564"]
[BlackElo "2794"]
[Result "0-1"]
[Round "4"]
[TimeControl "180+2"]
[Date "2023.07.04"]
[WhiteClock "0:00:05"]
[BlackClock "0:00:45"]
[Board "50"]

1. c4 {[%clk 0:02:57]}  e6 {[%clk 0:02:59]} 2. g3 {[%clk 0:02:57]}  d5 {[%clk 0:03:00]} 3. Bg2 {[%clk 0:02:58]}  Nf6 {[%clk 0:03:00]} 4. Nf3 {[%clk 0:02:58]}  Be7 {[%clk 0:03:00]} 5. d4 {[%clk 0:02:56]}  O-O {[%clk 0:03:00]} 6. O-O {[%clk 0:02:56]}  dxc4 {[%clk 0:03:00]} 7. Qc2 {[%clk 0:02:53]}  a6 {[%clk 0:03:00]} 8. a4 {[%clk 0:02:52]}  Bd7 {[%clk 0:02:56]} 9. Qxc4 {[%clk 0:02:48]}  Bc6 {[%clk 0:02:56]} 10. Bf4 {[%clk 0:02:48]}  a5 {[%clk 0:02:53]} 11. Nc3 {[%clk 0:02:40]}  Ra6 {[%clk 0:02:52]} 12. Rfe1 {[%clk 0:02:38]}  Rb6 {[%clk 0:02:52]} 13. e4 {[%clk 0:02:38]}  Rxb2 {[%clk 0:02:46]} 14. Ne5 {[%clk 0:02:37]}  Rb4 {[%clk 0:02:43]} 15. Nxc6 {[%clk 0:02:30]}  Nxc6 {[%clk 0:02:35]} 16. Qa2 {[%clk 0:02:25]}  Rxd4 {[%clk 0:02:22]} 17. Nb5 {[%clk 0:02:23]}  Rd7 {[%clk 0:02:19]} 18. Rac1 {[%clk 0:02:15]}  e5 {[%clk 0:02:13]} 19. Bg5 {[%clk 0:02:12]}  Nb4 {[%clk 0:02:14]} 20. Qc4 {[%clk 0:01:56]}  Nd3 {[%clk 0:02:13]} 21. Bh3 {[%clk 0:01:39]}  Nxe1 {[%clk 0:02:11]} 22. Bxf6 {[%clk 0:01:36]}  Bxf6 {[%clk 0:01:41]} 23. Bxd7 {[%clk 0:01:36]}  Qxd7 {[%clk 0:01:31]} 24. Rxe1 {[%clk 0:01:35]}  c6 {[%clk 0:01:32]} 25. Na3 {[%clk 0:01:28]}  Be7 {[%clk 0:01:30]} 26. Nc2 {[%clk 0:01:25]}  Rd8 {[%clk 0:01:27]} 27. Rb1 {[%clk 0:01:26]}  g6 {[%clk 0:01:16]} 28. Kg2 {[%clk 0:01:25]}  Kg7 {[%clk 0:01:16]} 29. h4 {[%clk 0:01:24]}  h5 {[%clk 0:01:16]} 30. Ne3 {[%clk 0:01:22]}  Bb4 {[%clk 0:01:10]} 31. Nc2 {[%clk 0:01:15]}  c5 {[%clk 0:01:09]} 32. Ne3 {[%clk 0:01:10]}  Qd3 {[%clk 0:01:08]} 33. Rb3 {[%clk 0:00:56]}  Qxc4 {[%clk 0:01:01]} 34. Nxc4 {[%clk 0:00:56]}  f6 {[%clk 0:01:01]} 35. Ne3 {[%clk 0:00:52]}  Rd4 {[%clk 0:01:01]} 36. f3 {[%clk 0:00:52]}  c4 {[%clk 0:01:00]} 37. Rb2 {[%clk 0:00:49]}  c3 {[%clk 0:01:00]} 38. Rc2 {[%clk 0:00:49]}  Rd2+ {[%clk 0:00:59]} 39. Kf1 {[%clk 0:00:47]}  Kf7 {[%clk 0:00:55]} 40. Ke1 {[%clk 0:00:46]}  Ke6 {[%clk 0:00:53]} 41. Rxd2 {[%clk 0:00:41]}  cxd2+ {[%clk 0:00:54]} 42. Kd1 {[%clk 0:00:42]}  f5 {[%clk 0:00:47]} 43. Nd5 {[%clk 0:00:35]}  Bc5 {[%clk 0:00:48]} 44. Kxd2 {[%clk 0:00:23]}  Bf2 {[%clk 0:00:48]} 45. Nc7+ {[%clk 0:00:08]}  Kd6 {[%clk 0:00:47]} 46. Ne8+ {[%clk 0:00:08]}  Ke7 {[%clk 0:00:47]} 47. Ng7 {[%clk 0:00:08]}  Kf7 {[%clk 0:00:44]} 48. exf5 {[%clk 0:00:07]}  Kxg7 {[%clk 0:00:45]} 49. fxg6 {[%clk 0:00:05]}  Bxg3 {[%clk 0:00:45]} 0-1


[Site "https://www.chess.com"]

[Event "Titled Tuesday Blitz July 4 Early 2023"]
[White "The_Sherman_Variation"]
[Black "Bachmann, Axel"]
[BlackFideId "3700488"]
[WhiteElo "2563"]
[BlackElo "2791"]
[Result "0-1"]
[Round "4"]
[TimeControl "180+2"]
[Date "2023.07.04"]
[WhiteClock "0:00:06"]
[BlackClock "0:00:05"]
[Board "51"]

1. Nf3 {[%clk 0:03:00]}  d5 {[%clk 0:02:47]} 2. d4 {[%clk 0:02:57]}  Nf6 {[%clk 0:02:46]} 3. Bf4 {[%clk 0:02:58]}  e6 {[%clk 0:02:42]} 4. e3 {[%clk 0:02:58]}  Bd6 {[%clk 0:02:42]} 5. Nbd2 {[%clk 0:02:56]}  Bxf4 {[%clk 0:02:41]} 6. exf4 {[%clk 0:02:57]}  O-O {[%clk 0:02:41]} 7. c3 {[%clk 0:02:53]}  c5 {[%clk 0:02:42]} 8. Bd3 {[%clk 0:02:50]}  cxd4 {[%clk 0:02:42]} 9. cxd4 {[%clk 0:02:49]}  Nc6 {[%clk 0:02:42]} 10. a3 {[%clk 0:02:49]}  Qb6 {[%clk 0:02:41]} 11. Nb3 {[%clk 0:02:44]}  a5 {[%clk 0:02:41]} 12. O-O {[%clk 0:02:39]}  a4 {[%clk 0:02:38]} 13. Nc5 {[%clk 0:02:39]}  Nxd4 {[%clk 0:02:29]} 14. Nxd4 {[%clk 0:02:35]}  Qxc5 {[%clk 0:02:28]} 15. Rc1 {[%clk 0:02:35]}  Qb6 {[%clk 0:02:27]} 16. Nb5 {[%clk 0:02:29]}  Bd7 {[%clk 0:02:19]} 17. Qe2 {[%clk 0:02:27]}  Bxb5 {[%clk 0:02:14]} 18. Bxb5 {[%clk 0:02:26]}  Ne4 {[%clk 0:02:11]} 19. Kh1 {[%clk 0:02:23]}  g6 {[%clk 0:02:00]} 20. f3 {[%clk 0:02:21]}  Nd6 {[%clk 0:01:57]} 21. Bd3 {[%clk 0:02:21]}  Rfc8 {[%clk 0:01:57]} 22. h4 {[%clk 0:02:20]}  Qd4 {[%clk 0:01:55]} 23. g3 {[%clk 0:02:15]}  Rxc1 {[%clk 0:01:45]} 24. Rxc1 {[%clk 0:02:16]}  Rc8 {[%clk 0:01:45]} 25. Rxc8+ {[%clk 0:02:05]}  Nxc8 {[%clk 0:01:46]} 26. h5 {[%clk 0:02:05]}  Kg7 {[%clk 0:01:38]} 27. Kg2 {[%clk 0:01:54]}  Nd6 {[%clk 0:01:35]} 28. hxg6 {[%clk 0:01:46]}  hxg6 {[%clk 0:01:29]} 29. Qc2 {[%clk 0:01:45]}  b5 {[%clk 0:01:14]} 30. Qe2 {[%clk 0:01:37]}  Nc4 {[%clk 0:01:00]} 31. Bxc4 {[%clk 0:01:35]}  bxc4 {[%clk 0:00:41]} 32. Kh2 {[%clk 0:01:22]}  Kg8 {[%clk 0:00:36]} 33. Qc2 {[%clk 0:01:19]}  Qb6 {[%clk 0:00:29]} 34. g4 {[%clk 0:01:16]}  Qb3 {[%clk 0:00:29]} 35. Qe2 {[%clk 0:01:14]}  c3 {[%clk 0:00:20]} 36. bxc3 {[%clk 0:01:14]}  Qxa3 {[%clk 0:00:20]} 37. f5 {[%clk 0:01:12]}  gxf5 {[%clk 0:00:15]} 38. gxf5 {[%clk 0:01:12]}  Qd6+ {[%clk 0:00:15]} 39. Kg2 {[%clk 0:01:12]}  e5 {[%clk 0:00:15]} 40. Qb5 {[%clk 0:01:06]}  a3 {[%clk 0:00:15]} 41. Qe8+ {[%clk 0:01:06]}  Kg7 {[%clk 0:00:15]} 42. Qa8 {[%clk 0:01:01]}  Kf6 {[%clk 0:00:14]} 43. Qa7 {[%clk 0:00:50]}  d4 {[%clk 0:00:14]} 44. cxd4 {[%clk 0:00:49]}  exd4 {[%clk 0:00:15]} 45. Kf1 {[%clk 0:00:46]}  d3 {[%clk 0:00:13]} 46. Ke1 {[%clk 0:00:46]}  Qb4+ {[%clk 0:00:12]} 47. Kf2 {[%clk 0:00:43]}  Qb2+ {[%clk 0:00:12]} 48. Kg3 {[%clk 0:00:41]}  a2 {[%clk 0:00:12]} 49. Qa6+ {[%clk 0:00:40]}  Kg5 {[%clk 0:00:11]} 50. Qc8 {[%clk 0:00:18]}  a1=Q {[%clk 0:00:10]} 51. f4+ {[%clk 0:00:18]}  Kh5 {[%clk 0:00:06]} 52. Qc6 {[%clk 0:00:06]}  Qg1+ {[%clk 0:00:05]} 0-1


[Site "https://www.chess.com"]

[Event "Titled Tuesday Blitz July 4 Early 2023"]
[White "Lin, Dachey"]
[Black "Tologon tegin, Semetei"]
[WhiteFideId "2029650"]
[BlackFideId "13800574"]
[WhiteElo "2787"]
[BlackElo "2557"]
[Result "1-0"]
[Round "4"]
[TimeControl "180+2"]
[Date "2023.07.04"]
[WhiteClock "0:00:10"]
[BlackClock "0:00:00"]
[Board "52"]

1. g4 {[%clk 0:02:43]}  g6 {[%clk 0:03:00]} 2. Bg2 {[%clk 0:02:43]}  Bg7 {[%clk 0:02:59]} 3. h4 {[%clk 0:02:43]}  h5 {[%clk 0:02:56]} 4. g5 {[%clk 0:02:44]}  d5 {[%clk 0:02:56]} 5. c4 {[%clk 0:02:43]}  c6 {[%clk 0:02:55]} 6. cxd5 {[%clk 0:02:41]}  cxd5 {[%clk 0:02:56]} 7. Nc3 {[%clk 0:02:41]}  e6 {[%clk 0:02:55]} 8. d4 {[%clk 0:02:39]}  Ne7 {[%clk 0:02:55]} 9. Bf4 {[%clk 0:02:39]}  Nbc6 {[%clk 0:02:55]} 10. e3 {[%clk 0:02:39]}  O-O {[%clk 0:02:54]} 11. Nge2 {[%clk 0:02:40]}  b6 {[%clk 0:02:49]} 12. Ng3 {[%clk 0:02:38]}  Ba6 {[%clk 0:02:47]} 13. Qa4 {[%clk 0:02:30]}  Qc8 {[%clk 0:02:44]} 14. Bf3 {[%clk 0:02:26]}  Qb7 {[%clk 0:02:38]} 15. Nb5 {[%clk 0:02:19]}  Bxb5 {[%clk 0:02:36]} 16. Qxb5 {[%clk 0:02:19]}  a6 {[%clk 0:02:36]} 17. Qe2 {[%clk 0:02:16]}  e5 {[%clk 0:02:34]} 18. dxe5 {[%clk 0:02:15]}  Nxe5 {[%clk 0:02:35]} 19. Bg2 {[%clk 0:02:02]}  Rfe8 {[%clk 0:02:28]} 20. O-O {[%clk 0:02:02]}  Rad8 {[%clk 0:02:24]} 21. Rac1 {[%clk 0:02:02]}  b5 {[%clk 0:02:19]} 22. Rfd1 {[%clk 0:02:02]}  Qb6 {[%clk 0:02:18]} 23. b3 {[%clk 0:02:00]}  N5c6 {[%clk 0:02:00]} 24. Rd2 {[%clk 0:01:49]}  d4 {[%clk 0:01:54]} 25. e4 {[%clk 0:01:36]}  Ne5 {[%clk 0:01:28]} 26. Qd1 {[%clk 0:01:25]}  N7c6 {[%clk 0:01:25]} 27. Ne2 {[%clk 0:01:19]}  Ng4 {[%clk 0:01:11]} 28. Bg3 {[%clk 0:01:16]}  Be5 {[%clk 0:00:47]} 29. Nf4 {[%clk 0:01:16]}  d3 {[%clk 0:00:23]} 30. Kf1 {[%clk 0:00:35]}  Nb4 {[%clk 0:00:12]} 31. Qf3 {[%clk 0:00:30]}  Nc2 {[%clk 0:00:11]} 32. Rxd3 {[%clk 0:00:23]}  Nd4 {[%clk 0:00:10]} 33. Qd1 {[%clk 0:00:22]}  Bxf4 {[%clk 0:00:10]} 34. Bxf4 {[%clk 0:00:21]}  Nxb3 {[%clk 0:00:10]} 35. Rc2 {[%clk 0:00:21]}  Nd4 {[%clk 0:00:09]} 36. Rcd2 {[%clk 0:00:21]}  Ne6 {[%clk 0:00:09]} 37. Bg3 {[%clk 0:00:19]}  Rxd3 {[%clk 0:00:07]} 38. Rxd3 {[%clk 0:00:20]}  b4 {[%clk 0:00:08]} 39. Qd2 {[%clk 0:00:18]}  Qb5 {[%clk 0:00:07]} 40. Kg1 {[%clk 0:00:16]}  Rc8 {[%clk 0:00:08]} 41. f3 {[%clk 0:00:13]}  Qc5+ {[%clk 0:00:06]} 42. Kf1 {[%clk 0:00:11]}  Qc1+ {[%clk 0:00:06]} 43. Qxc1 {[%clk 0:00:07]}  Rxc1+ {[%clk 0:00:07]} 44. Ke2 {[%clk 0:00:08]}  Rc2+ {[%clk 0:00:04]} 45. Rd2 {[%clk 0:00:09]}  Nd4+ {[%clk 0:00:04]} 46. Kd3 {[%clk 0:00:09]}  Rxd2+ {[%clk 0:00:00]} 47. Kxd2 {[%clk 0:00:10]} 1-0


[Site "https://www.chess.com"]